bitfinex/quotes_ETHUSD_20250806
["timestamp","ask_amount","ask_price","bid_price","bid_amount"]
[1754472655669,0.1376,3633.5,3633.4,2.75224307]
[1754472656476,0.1376,3633.5,3633.3,2.75228879]
[1754472657494,0.1376,3633.5,3633.4,2.75224307]
[1754472657696,0.1376,3633.5,3633.3,2.75228825]
[1754472658962,0.1376,3633.5,3633.3,1e-08]
[1754472659592,0.6018,3633.5,3633.3,1e-08]
[1754472659900,0.4642,3633.4,3633.3,1e-08]
[1754472660406,3.35047315,3633.5,3633.3,2.75231883]
[1754472660407,0.1376,3633.5,3633.3,2.75231883]
[1754472660710,0.1376,3633.5,3633.4,0.9558]
[1754472660875,0.1376,3633.5,3633.3,1e-08]
[1754472661219,0.4642,3633.4,3633.3,1e-08]
[1754472661359,0.9249,3633.4,3633.3,1e-08]
[1754472661558,0.1376,3633.5,3633.3,1e-08]
[1754472661769,0.1376,3633.5,3633.3,0.46660001]
[1754472662060,0.6018,3633.5,3633.3,1e-08]
[1754472662269,0.1376,3633.5,3633.3,1e-08]
[1754472662489,0.4642,3633.4,3633.3,1e-08]
[1754472663392,0.9249,3633.4,3633.3,1e-08]
[1754472663611,0.4642,3633.4,3633.3,1e-08]
[1754472664157,3.21644307,3633.4,3633.3,1e-08]
[1754472664375,3.67714307,3633.4,3633.3,1e-08]
[1754472665136,4.22714307,3633.4,3633.3,1e-08]
[1754472666555,3.76644307,3633.4,3633.3,1e-08]
[1754472666899,7.22714307,3633.4,3633.3,1e-08]
[1754472669851,6.30224307,3633.4,3633.3,1e-08]
[1754472670017,6.76644307,3633.4,3633.3,1e-08]
[1754472670218,3.6876,3633.4,3633.3,1e-08]
[1754472670419,6.43984307,3633.4,3633.3,1e-08]
[1754472670958,6.90404307,3633.4,3633.3,1e-08]
[1754472671946,4.1518,3633.4,3633.3,1e-08]
[1754472672581,0.1376,3633.4,3633.3,1e-08]
[1754472672788,0.1376,3633.4,3633.3,0.95580001]
[1754472672987,0.1376,3633.4,3633.3,0.46660001]
[1754472673206,0.1376,3633.4,3633.3,1e-08]
[1754472673494,0.5979,3633.4,3633.3,1e-08]
[1754472673847,3.35014307,3633.4,3633.3,1e-08]
[1754472674046,0.1376,3633.4,3633.3,1e-08]
[1754472674985,0.4603,3634.5,3633.3,1.35596455]
[1754472675192,0.1376,3633.9,3633.4,0.9116]
[1754472675356,0.1376,3633.9,3633.5,3.66375036]
[1754472675548,0.1376,3633.9,3633.8,2.75194011]
[1754472675748,0.1376,3633.9,3633.8,3.66354011]
[1754472676066,2.75157797,3634.3,3633.8,0.9116]
[1754472676251,0.1376,3633.9,3633.5,0.4614]
[1754472676458,0.1376,3633.7,3633.5,2.75210138]
[1754472676779,0.1376,3633.7,3633.6,3.66369158]
[1754472677498,0.1376,3633.7,3633.6,2.75209158]
[1754472677699,0.001,3635.0,3633.6,2.91721249]
[1754472677857,0.001,3635.0,3634.6,2.75133439]
[1754472678193,0.1376,3634.9,3634.8,2.751183]
[1754472678552,0.1376,3634.9,3634.7,2.75123551]
[1754472679198,0.1376,3634.9,3634.6,2.75128526]
[1754472679505,0.001,3635.0,3634.8,2.751183]
[1754472679793,0.001,3635.0,3634.7,2.7512519]
[1754472679794,0.001,3635.0,3634.9,2.75110732]
[1754472679992,0.001,3635.0,3634.9,2.91621839]
[1754472680221,0.001,3635.0,3634.9,2.88870732]
[1754472687220,0.001,3635.0,3634.9,2.75110732]
[1754472687423,0.001,3635.0,3634.9,3.77046082]
[1754472693982,0.001,3635.0,3634.9,3.79797189]
[1754472694817,0.001,3635.0,3634.9,8.05046082]
[1754472699682,0.001,3635.0,3634.9,4.28]
[1754472699963,0.1386,3635.0,3634.9,4.28]
[1754472700459,0.1386,3635.0,3634.2,4.28]
[1754472700662,0.001,3635.0,3634.3,0.1376]
[1754472700849,0.1376,3634.6,3633.6,2.75209158]
[1754472701053,0.1376,3634.6,3634.1,2.88925341]
[1754472701270,0.1376,3634.6,3634.1,2.75165341]
[1754472701868,0.1376,3634.6,3634.0,0.1376]
[1754472702027,0.1376,3634.6,3634.1,2.75168547]
[1754472703167,0.1376,3634.6,3634.1,2.75171278]
[1754472704066,0.001,3635.0,3633.5,0.002]
[1754472704264,0.1376,3634.1,3633.8,2.75193138]
[1754472704768,0.1376,3634.1,3633.8,0.56436207]
[1754472704954,0.1376,3634.1,3634.0,2.75178866]
[1754472705665,0.1376,3634.1,3633.8,2.75187895]
[1754472706083,2.88936087,3634.1,3633.5,2.75414037]
[1754472706245,2.75176087,3634.1,3633.5,2.75414037]
[1754472706436,0.1376,3633.8,3633.5,0.002]
[1754472706635,0.1376,3633.8,3633.5,2.75415479]
[1754472707138,0.1376,3633.8,3633.7,2.75201585]
[1754472709570,0.1376,3633.8,3633.5,2.75410404]
[1754472709773,2.75202344,3633.7,3633.5,0.002]
[1754472709931,2.88969158,3633.6,3633.5,0.002]
[1754472710268,3.43969158,3633.6,3633.5,0.002]
[1754472711962,6.43969158,3633.6,3633.5,0.002]
[1754472719905,0.1376,3633.6,3633.5,0.002]
[1754472720395,0.1376,3633.6,3633.5,2.75416733]
[1754472720702,2.75110732,3634.9,3633.6,2.75209158]
[1754472720859,0.001,3635.0,3634.3,2.75153216]
[1754472721189,2.75115923,3634.9,3634.2,2.75160856]
[1754472721358,3.0,3634.7,3634.0,2.7517321]
[1754472721561,0.55,3634.8,3633.5,0.55264207]
[1754472721562,2.75145697,3634.5,3633.8,2.75192961]
[1754472721763,0.55,3634.8,3633.8,0.60566633]
[1754472721958,0.55,3634.8,3633.5,2.75415727]
[1754472721959,2.75165759,3634.2,3633.5,2.75415727]
[1754472722256,0.55,3634.0,3633.5,0.002]
[1754472722805,2.75181936,3634.0,3633.5,0.002]
[1754472723889,0.55,3634.0,3633.5,0.002]
[1754472724590,3.0,3634.2,3633.5,0.002]
[1754472724591,2.75164755,3634.2,3633.5,0.002]
[1754472725130,0.55,3634.2,3633.6,2.75203166]
[1754472725290,2.75157341,3634.3,3633.5,2.75415119]
[1754472725291,0.55,3634.3,3633.5,2.75415119]
[1754472725587,2.7517166,3634.1,3633.5,0.002]
[1754472725804,2.75166329,3634.2,3633.5,0.002]
[1754472726359,2.75172436,3634.1,3633.5,2.75414613]
[1754472726690,2.75172436,3634.1,3633.5,2.75416409]
[1754472726882,3.30164965,3634.2,3633.5,2.75416409]
[1754472727056,2.75173345,3634.1,3633.5,2.75416409]
[1754472727253,2.75173345,3634.1,3633.5,2.75416519]
[1754472727478,3.0,3634.1,3633.6,2.7520889]
[1754472727893,2.75171808,3634.1,3633.5,0.002]
[1754472728110,2.751796,3634.0,3633.5,0.002]
[1754472728393,2.7517387,3634.1,3633.5,0.002]
[1754472728916,2.7517387,3634.1,3633.5,2.75416343]
[1754472729306,3.55,3634.2,3633.6,2.75203591]
[1754472729505,0.55,3634.2,3633.5,2.75414691]
[1754472729689,2.75172382,3634.1,3633.5,2.75414691]
[1754472730518,2.75185586,3634.0,3633.5,0.002]
[1754472730695,0.1376,3633.7,3633.5,0.002]
[1754472730902,0.1376,3633.7,3633.5,2.7541596]
[1754472731419,0.1376,3633.7,3633.6,2.75209158]
[1754472731587,0.1376,3633.7,3633.5,2.75414621]
[1754472732095,0.1376,3633.7,3633.6,2.75209158]
[1754472732720,0.1376,3633.7,3633.5,0.002]
[1754472732899,0.1376,3633.7,3633.5,2.75416717]
[1754472734015,0.1376,3633.7,3633.5,0.002]
[1754472734221,0.1376,3633.7,3633.5,2.75415824]
[1754472734405,0.1376,3633.7,3633.5,0.002]
[1754472735433,0.1376,3634.2,3634.1,2.75171294]
[1754472736779,0.1376,3634.2,3634.0,2.75176668]
[1754472736982,0.1376,3634.2,3634.1,2.75171294]
[1754472737423,2.75194011,3633.8,3633.7,0.1376]
[1754472737610,6.30209158,3633.6,3633.5,0.002]
[1754472738128,6.55959217,3633.6,3633.5,0.002]
[1754472741593,6.30209158,3633.6,3633.5,0.002]
[1754472741794,6.55957113,3633.6,3633.5,0.002]
[1754472742192,0.25747708,3633.6,3633.5,0.002]
[1754472742524,2.75150273,3634.4,3633.5,0.002]
[1754472742525,0.25747708,3633.7,3633.5,0.002]
[1754472742736,2.75209158,3633.6,3633.5,0.002]
[1754472742895,0.25747708,3633.6,3633.5,0.002]
[1754472743092,2.75209158,3633.6,3633.5,0.002]
[1754472744819,0.55,3633.8,3633.5,0.002]
[1754472745030,3.30199025,3633.8,3633.5,0.002]
[1754472745330,3.30196168,3633.8,3633.5,0.002]
[1754472746348,2.75195244,3633.8,3633.5,0.4591]
[1754472746790,2.75195244,3633.8,3633.5,0.9492]
[1754472747416,0.1376,3633.6,3633.5,0.9492]
[1754472747830,0.1376,3633.6,3633.5,0.002]
[1754472748195,0.1376,3633.6,3633.5,0.4591]
[1754472749438,0.1376,3633.6,3633.5,0.002]
[1754472751008,0.1376,3633.6,3633.5,0.4591]
[1754472751218,0.1376,3633.6,3633.5,0.9492]
[1754472753869,0.55,3634.2,3633.5,1.31935892]
[1754472754001,0.827015,3634.9,3634.0,2.75176313]
[1754472754206,0.1376,3634.2,3634.1,3.20881294]
[1754472754405,0.1376,3634.2,3634.1,3.69891294]
[1754472755208,0.1376,3634.5,3634.2,2.7516339]
[1754472755355,0.1376,3634.5,3634.3,2.75156012]
[1754472755650,0.1376,3634.5,3634.3,0.9506]
[1754472756462,0.603,3634.5,3634.0,0.1376]
[1754472756762,0.4654,3634.4,3634.0,2.7517264]
[1754472757047,0.4654,3634.4,3634.0,3.2217264]
[1754472757266,0.1376,3634.5,3633.9,0.1376]
[1754472757416,0.4654,3634.4,3633.8,0.4806]
[1754472757618,0.1376,3634.2,3634.1,2.75171294]
[1754472757851,0.1376,3634.2,3634.1,4.34772481]
[1754472759048,0.1376,3634.4,3634.2,2.75163044]
[1754472759245,0.1376,3634.4,3634.3,0.9506]
[1754472759639,0.1376,3634.4,3634.1,3.39709233]
[1754472759972,0.1376,3634.4,3634.1,0.47]
[1754472760271,0.1376,3634.4,3633.9,2.88943612]
[1754472760570,0.1376,3634.2,3634.0,2.75178641]
[1754472761144,0.1376,3634.2,3634.1,3.70231294]
[1754472761372,0.1376,3634.4,3634.3,2.75156151]
[1754472761688,0.1376,3634.6,3634.3,3.70216151]
[1754472762183,0.1376,3634.6,3634.4,3.22148221]
[1754472762362,0.1376,3634.6,3634.4,3.70208221]
[1754472762547,0.1376,3634.6,3634.4,0.9506]
[1754472762746,0.1376,3634.6,3634.5,2.75141009]
[1754472762989,0.1376,3634.6,3634.5,3.70201009]
[1754472763338,0.1376,3634.6,3634.5,3.72952419]
[1754472763537,0.001,3635.0,3634.9,2.75110732]
[1754472763768,0.001,3635.0,3634.9,2.77861839]
[1754472764035,0.001,3635.0,3634.9,4.4873486]
[1754472764237,0.001,3635.0,3634.9,3.5367486]
[1754472764537,0.001,3635.0,3634.9,2.75110732]
[1754472765065,0.001,3635.0,3634.9,3.70170732]
[1754472765677,0.001,3635.0,3634.9,3.86681839]
[1754472766374,0.001,3635.0,3634.9,3.83930732]
[1754472766596,0.001,3635.0,3634.9,4.01775749]
[1754472766819,0.001,3635.0,3634.9,2.75110732]
[1754472768301,0.001,3635.0,3634.9,3.70170732]
[1754472768496,0.001,3635.0,3634.9,2.75110732]
[1754472771400,0.001,3635.0,3634.9,3.70170732]
[1754472771563,0.001,3635.0,3634.9,3.83930732]
[1754472771767,0.001,3635.0,3634.9,4.49835749]
[1754472772280,0.001,3635.0,3634.9,4.52586856]
[1754472772497,0.001,3635.3,3635.2,2.75088028]
[1754472772821,0.001,3635.3,3635.2,2.77838908]
[1754472773107,0.001,3635.3,3635.2,3.83908028]
[1754472773309,0.001,3635.3,3635.2,4.8391006]
[1754472773778,0.001,3635.3,3635.2,3.8885006]
[1754472776695,0.001,3635.3,3635.2,4.8391006]
[1754472777500,0.001,3635.3,3635.2,4.8666094]
[1754472777730,0.001,3635.3,3635.2,4.8391006]
[1754472779987,0.001,3635.3,3635.2,4.3585006]
[1754472780193,0.001,3635.3,3635.2,2.88848028]
[1754472780500,0.4664,3635.3,3635.2,2.75088028]
[1754472780709,0.902,3635.3,3635.0,2.75098396]
[1754472781013,0.4356,3635.2,3634.9,0.002]
[1754472781315,0.901,3635.2,3634.9,0.002]
[1754472781489,0.4356,3635.1,3634.9,0.002]
[1754472781889,0.5732,3635.1,3634.9,0.002]
[1754472782118,0.1376,3635.1,3634.9,0.002]
[1754472782421,0.001,3635.3,3635.2,2.75088028]
[1754472782786,0.001,3635.3,3635.2,3.22088028]
[1754472783116,0.001,3635.3,3635.2,2.75088028]
[1754472783521,0.4664,3635.3,3635.0,2.75103163]
[1754472783816,0.4654,3635.2,3635.1,2.75094411]
[1754472784126,0.4654,3635.2,3635.0,2.7510018]
[1754472784415,0.4654,3635.2,3635.1,2.75095595]
[1754472785323,0.4654,3635.2,3634.9,2.89070168]
[1754472785526,0.001,3635.3,3634.9,0.1396]
[1754472785685,0.4981,3635.1,3634.9,0.002]
[1754472785885,0.4981,3635.0,3634.9,2.75310732]
[1754472787081,0.4981,3635.0,3634.9,0.002]
[1754472787725,4.24603163,3635.0,3634.9,0.002]
[1754472788021,4.38363163,3635.0,3634.9,0.002]
[1754472791334,7.38363163,3635.0,3634.9,0.002]
[1754472792530,37.38363163,3635.0,3634.9,0.002]
[1754472792763,3.30133439,3634.6,3634.5,0.002]
[1754472793248,4.38393439,3634.6,3634.5,0.002]
[1754472793539,7.38393439,3634.6,3634.5,0.002]
[1754472794736,6.93703439,3634.6,3634.5,0.002]
[1754472795499,7.38393439,3634.6,3634.5,0.002]
[1754472797448,6.93703439,3634.6,3634.5,0.002]
[1754472798156,6.43893439,3634.6,3634.5,0.002]
[1754472799950,6.93703439,3634.6,3634.5,0.002]
[1754472800754,6.43893439,3634.6,3634.5,0.002]
[1754472801538,3.6876,3634.6,3634.5,0.002]
[1754472801743,6.43893439,3634.6,3634.5,0.002]
[1754472801940,6.93703439,3634.6,3634.5,0.002]
[1754472804481,0.1376,3634.6,3634.5,0.9738]
[1754472804693,0.1376,3634.6,3634.5,4.09773377]
[1754472806677,0.1376,3634.6,3634.5,1.34632368]
[1754472806852,0.1376,3634.6,3634.5,0.9738]
[1754472807061,0.551,3635.1,3634.6,2.75128899]
[1754472807259,0.1376,3634.7,3634.6,2.75128899]
[1754472807561,0.1376,3634.7,3634.5,2.75337988]
[1754472807793,0.1376,3634.7,3634.6,2.75133439]
[1754472807969,0.1376,3634.7,3634.6,3.72313439]
[1754472809088,0.1376,3634.7,3634.6,0.9718]
[1754472809750,0.001,3635.1,3634.8,2.7511686]
[1754472809948,0.1376,3635.0,3634.8,0.4727]
[1754472810349,0.1376,3635.0,3634.8,3.25028178]
[1754472810553,0.1376,3635.0,3634.9,0.9718]
[1754472811690,0.1376,3635.0,3634.6,1.34433514]
[1754472811888,3.24925852,3634.9,3634.5,0.002]
[1754472812298,3.79929153,3634.8,3634.5,0.002]
[1754472812503,2.75133439,3634.6,3634.5,0.002]
[1754472812654,3.43893439,3634.6,3634.5,0.002]
[1754472812854,3.93703439,3634.6,3634.5,0.002]
[1754472813365,0.6876,3634.6,3634.5,0.002]
[1754472813796,0.6876,3634.6,3634.5,0.4747]
[1754472814498,0.1376,3634.6,3634.5,0.4747]
[1754472814675,0.1376,3634.6,3634.5,0.9738]
[1754472814998,0.1376,3634.6,3634.5,0.4747]
[1754472815201,0.1376,3634.6,3634.5,0.9535]
[1754472815874,0.1376,3634.6,3634.5,0.4747]
[1754472816089,0.1376,3634.6,3634.5,0.002]
[1754472816257,2.88893439,3634.6,3634.5,0.002]
[1754472816606,0.6086,3634.6,3634.5,0.002]
[1754472816776,0.1376,3634.6,3634.5,0.002]
[1754472817100,0.1376,3634.6,3634.5,3.66551009]
[1754472817403,0.001,3635.1,3635.0,2.75103163]
[1754472817588,0.001,3635.1,3635.0,3.66313163]
[1754472818699,0.001,3635.1,3635.0,3.80073163]
[1754472823082,0.001,3635.1,3635.0,6.80073163]
[1754472823280,0.001,3635.3,3635.2,2.75088028]
[1754472823495,0.001,3635.3,3635.2,5.77838908]
[1754472823702,0.001,3635.5,3635.3,2.75080461]
[1754472823898,0.001,3635.5,3635.3,3.66290461]
[1754472825918,0.001,3635.5,3635.3,3.69041265]
[1754472826211,0.001,3635.5,3635.3,5.19627129]
[1754472827214,0.001,3635.5,3635.3,5.16876325]
[1754472827618,0.001,3635.5,3635.3,5.19627129]
[1754472828207,0.001,3635.5,3635.3,5.16876325]
[1754472828383,0.001,3635.5,3635.3,9.44876325]
[1754472830836,0.001,3635.5,3635.3,8.53666325]
[1754472830991,0.001,3635.5,3635.3,7.03080461]
[1754472832229,0.001,3635.5,3635.3,8.08050461]
[1754472833821,0.001,3635.5,3635.3,3.80050461]
[1754472840613,0.001,3635.5,3635.3,3.82801265]
[1754472840811,0.001,3635.5,3635.3,3.80050461]
[1754472841026,0.001,3635.5,3635.3,4.47622]
[1754472843064,0.001,3635.5,3635.3,4.47822]
[1754472845380,0.001,3635.5,3635.3,3.56612]
[1754472845840,0.4949,3635.4,3635.3,3.56612]
[1754472846150,0.4949,3635.4,3635.3,2.89040461]
[1754472846749,0.001,3635.4,3635.3,2.89040461]
[1754472847956,0.001,3635.4,3635.3,3.84690461]
[1754472849120,0.001,3635.4,3635.3,6.84690461]
[1754472851561,0.001,3635.4,3635.3,11.12690461]
[1754472851855,0.001,3635.4,3635.3,12.53526]
[1754472852351,0.001,3635.4,3635.3,8.25526]
[1754472855740,0.001,3635.7,3635.6,5.75057762]
[1754472856127,0.001,3635.7,3635.6,6.84467762]
[1754472860874,0.4949,3635.7,3635.6,5.88817762]
[1754472861241,0.4949,3635.7,3635.6,6.37782984]
[1754472861961,0.9643,3635.7,3635.6,6.37782984]
[1754472862162,0.9643,3635.7,3635.6,5.88817762]
[1754472862581,0.4949,3635.7,3635.6,5.88817762]
[1754472863989,0.4949,3635.7,3635.6,2.88817762]
[1754472865081,0.001,3635.7,3635.6,2.75057762]
[1754472865266,0.001,3635.7,3635.6,3.84467762]
[1754472865580,0.001,3635.7,3635.6,4.92307813]
[1754472865788,0.001,3635.7,3635.6,7.92307813]
[1754472866345,0.001,3635.7,3635.6,6.96657813]
[1754472866546,0.4949,3635.7,3635.6,3.96657813]
[1754472866855,0.4949,3635.7,3635.6,2.88817762]
[1754472867946,0.001,3635.7,3635.6,2.88817762]
[1754472868147,0.001,3635.7,3635.6,3.84467762]
[1754472868668,0.4949,3635.7,3635.6,2.88817762]
[1754472868973,0.9643,3635.7,3635.6,2.88817762]
[1754472869349,0.9643,3635.7,3635.6,7.16817762]
[1754472869752,0.4949,3635.7,3635.6,7.16817762]
[1754472870354,0.9643,3635.7,3635.6,7.16817762]
[1754472871165,0.4949,3635.7,3635.6,7.16817762]
[1754472871468,0.9643,3635.7,3635.4,2.75072805]
[1754472871673,0.4949,3635.7,3635.5,0.1376]
[1754472871882,0.9633,3635.6,3635.5,0.1376]
[1754472872198,0.9633,3635.6,3635.3,0.1396]
[1754472872392,0.9633,3635.5,3635.3,2.89037841]
[1754472872706,0.9633,3635.4,3635.3,0.002]
[1754472872855,3.71402894,3635.4,3635.3,0.002]
[1754472873061,4.40162894,3635.4,3635.3,0.002]
[1754472873251,6.80162894,3635.4,3635.3,0.002]
[1754472874491,3.5009,3635.4,3635.3,0.002]
[1754472875193,6.80162894,3635.4,3635.3,0.002]
[1754472878268,4.0509,3635.4,3635.3,0.002]
[1754472878553,6.78752894,3635.4,3635.3,0.002]
[1754472884385,9.78752894,3635.4,3635.3,0.002]
[1754472885920,39.78752894,3635.4,3635.3,0.002]
[1754472886686,9.78752894,3635.4,3635.3,0.002]
[1754472888287,8.28832894,3635.4,3635.3,0.002]
[1754472888983,5.28832894,3635.4,3635.3,0.002]
[1754472889185,5.83832894,3635.4,3635.3,0.002]
[1754472890615,29.04041987,3635.4,3635.3,0.002]
[1754472890803,29.98431987,3635.4,3635.3,0.002]
[1754472891312,32.98431987,3635.4,3635.3,0.002]
[1754472894240,62.98431987,3635.4,3635.3,0.002]
[1754472894943,63.09457687,3635.4,3635.3,0.002]
[1754472895236,65.99557687,3635.4,3635.3,0.002]
[1754472895394,63.09457687,3635.4,3635.3,0.002]
[1754472897045,63.09457687,3635.4,3635.3,1e-08]
[1754472897353,3.30103163,3635.0,3634.9,0.002]
[1754472897497,29.50327393,3634.8,3634.7,0.002]
[1754472897693,59.50327393,3634.8,3634.7,0.002]
[1754472897887,60.55744893,3634.8,3634.7,0.002]
[1754472898128,62.95744893,3634.8,3634.7,0.002]
[1754472898805,69.79303414,3634.8,3634.7,0.002]
[1754472900210,69.33773414,3634.8,3634.7,0.002]
[1754472900428,38.73885914,3634.8,3634.7,0.002]
[1754472900720,39.22745914,3634.8,3634.7,0.002]
[1754472900891,39.68275914,3634.8,3634.7,0.002]
[1754472901321,39.22745914,3634.8,3634.7,0.002]
[1754472901696,39.36408176,3634.8,3634.7,0.002]
[1754472901905,3.30163722,3634.2,3634.1,0.3603]
[1754472902304,3.30163722,3634.2,3634.1,0.8351]
[1754472903430,0.55,3633.9,3633.8,0.4768]
[1754472903597,3.30186438,3633.9,3633.8,0.4768]
[1754472903797,0.55,3633.9,3633.8,0.9471]
[1754472904109,2.4,3633.9,3633.8,0.9471]
[1754472906227,2.4,3633.9,3633.8,1.59262729]
[1754472906631,2.75134761,3634.6,3634.0,2.75176972]
[1754472906937,2.75150794,3634.4,3634.1,0.9054]
[1754472907239,2.4,3634.3,3634.2,0.9054]
[1754472907440,2.5376,3634.3,3633.8,2.89152814]
[1754472907623,2.5376,3634.3,3633.9,2.75185477]
[1754472907820,2.5376,3634.3,3634.0,2.75178318]
[1754472908142,2.5376,3634.3,3634.1,0.9054]
[1754472908342,2.5376,3634.3,3633.9,2.7518359]
[1754472908511,2.5376,3634.3,3634.2,0.9054]
[1754472908931,5.28916151,3634.3,3634.2,0.9054]
[1754472909449,5.28916151,3634.3,3633.8,0.4327]
[1754472909450,2.75186438,3633.9,3633.8,0.4327]
[1754472909647,3.93916438,3633.9,3633.8,0.002]
[1754472909946,9.78806438,3633.9,3633.8,0.002]
[1754472910811,39.78806438,3633.9,3633.8,0.002]
[1754472913248,9.33916438,3633.9,3633.8,0.002]
[1754472913565,8.83946438,3633.9,3633.8,0.002]
[1754472913711,8.28946438,3633.9,3633.8,0.4327]
[1754472913906,8.83946438,3633.9,3633.8,0.002]
[1754472914719,9.33916438,3633.9,3633.8,0.002]
[1754472915121,8.83946438,3633.9,3633.8,0.002]
[1754472915327,8.83946438,3633.9,3633.8,0.9074]
[1754472915848,2.5376,3633.9,3633.8,0.9074]
[1754472916617,0.1376,3633.9,3633.8,0.9074]
[1754472917041,2.88946438,3633.9,3633.8,0.9074]
[1754472918137,0.1376,3633.9,3633.8,0.9074]
[1754472918536,2.88946438,3633.9,3633.8,0.9074]
[1754472918849,2.88946438,3633.9,3633.8,0.002]
[1754472919150,5.28946438,3633.9,3633.8,0.002]
[1754472919328,5.83946438,3633.9,3633.8,0.002]
[1754472919533,6.33916438,3633.9,3633.8,0.002]
[1754472919758,5.83946438,3633.9,3633.8,0.002]
[1754472920053,6.33916438,3633.9,3633.8,0.002]
[1754472920845,5.83946438,3633.9,3633.8,0.002]
[1754472921041,2.5376,3633.9,3633.8,0.9074]
[1754472921359,23.71167655,3635.2,3633.8,1.27375022]
[1754472921658,0.1376,3634.4,3634.2,2.7516177]
[1754472921820,0.1376,3634.4,3634.3,3.65696151]
[1754472922024,3.0,3634.8,3634.3,3.65696151]
[1754472922220,3.0,3634.8,3634.4,0.9054]
[1754472922449,5.75119636,3634.8,3634.5,0.9054]
[1754472922644,5.75119636,3634.8,3634.2,2.75161978]
[1754472922645,5.75119636,3634.8,3634.6,0.9054]
[1754472923161,0.1376,3634.7,3634.6,0.9054]
[1754472923957,2.75139126,3634.6,3634.3,0.9054]
[1754472924158,0.1376,3634.5,3634.3,0.9054]
[1754472924545,0.1376,3634.5,3633.8,0.002]
[1754472924546,0.55,3634.4,3633.8,0.002]
[1754472924724,0.1376,3634.0,3633.8,0.9074]
[1754472924923,0.1376,3634.0,3633.9,0.4307]
[1754472925231,2.5376,3634.0,3633.8,0.002]
[1754472925430,2.5376,3634.0,3633.8,0.4767]
[1754472925641,2.5376,3634.0,3633.9,0.9054]
[1754472926464,2.5376,3634.0,3633.8,0.002]
[1754472926851,2.5376,3634.0,3633.8,0.4327]
[1754472927356,4.326685,3635.2,3633.9,0.9054]
[1754472927523,0.1376,3634.4,3634.1,2.7516897]
[1754472927727,0.1376,3634.4,3633.9,2.88946071]
[1754472927728,0.001,3634.9,3634.2,0.93291637]
[1754472928037,0.1376,3634.8,3634.3,0.1376]
[1754472928254,0.1376,3634.8,3634.4,0.9054]
[1754472928429,0.1376,3634.8,3634.5,0.9054]
[1754472928626,0.1376,3634.8,3634.7,2.7512587]
[1754472928831,0.001,3634.9,3634.7,2.7512587]
[1754472929244,0.001,3634.9,3634.8,3.656583]
[1754472929448,0.001,3634.9,3634.8,0.9054]
[1754472930532,0.001,3634.9,3634.5,3.79437876]
[1754472930734,0.001,3634.9,3634.6,0.9054]
[1754472930931,0.001,3634.9,3634.7,2.75125165]
[1754472931132,0.001,3634.9,3634.8,2.751183]
[1754472931333,0.001,3634.9,3634.8,3.656583]
[1754472931724,0.001,3634.9,3634.8,0.9054]
[1754472934376,2.401,3634.9,3634.8,0.9054]
[1754472934573,2.401,3634.9,3634.5,2.88896645]
[1754472934874,2.401,3634.9,3634.7,2.75119935]
[1754472935048,2.401,3634.9,3634.8,2.751183]
[1754472935252,2.401,3634.9,3634.8,3.670583]
[1754472935780,0.001,3634.9,3634.8,3.670583]
[1754472936280,0.001,3634.9,3634.8,4.49164561]
[1754472936640,0.001,3634.9,3634.8,4.46413378]
[1754472937537,0.001,3634.9,3634.8,2.751183]
[1754472937775,0.001,3634.9,3634.7,2.88882409]
[1754472938273,0.001,3634.9,3634.8,2.751183]
[1754472938578,0.001,3634.9,3634.8,3.670583]
[1754472938991,0.001,3634.9,3634.8,0.9194]
[1754472939139,0.001,3634.9,3634.6,2.75128967]
[1754472939538,0.001,3634.9,3634.3,0.4423]
[1754472939539,0.4667,3634.8,3634.3,2.75156151]
[1754472939785,0.6043,3634.8,3634.4,2.75143168]
[1754472939979,0.6043,3634.8,3634.3,2.88913123]
[1754472940179,2.4,3634.7,3634.3,0.1376]
[1754472940785,3.21803496,3634.6,3634.3,0.1376]
[1754472941086,3.65283496,3634.6,3634.0,2.75178047]
[1754472941249,0.1376,3634.3,3633.9,2.75183685]
[1754472941449,2.4,3634.2,3633.9,2.75183685]
[1754472941869,2.4,3634.2,3633.8,2.89151115]
[1754472942561,2.4,3634.2,3633.9,2.75184897]
[1754472942898,0.1376,3634.3,3633.9,2.75184897]
[1754472943273,2.4,3634.2,3633.9,2.75184897]
[1754472944002,2.4,3634.2,3634.0,2.75178511]
[1754472944298,2.4,3634.2,3633.9,2.75185492]
[1754472944595,2.4,3634.2,3633.8,2.89152107]
[1754472944774,2.4,3634.2,3633.8,2.75392107]
[1754472945368,2.4,3634.2,3633.9,2.75184804]
[1754472945585,2.4,3634.2,3633.8,2.75390828]
[1754472946098,2.4,3634.2,3633.8,0.002]
[1754472946304,0.1376,3633.9,3633.8,0.002]
[1754472947566,0.1376,3633.9,3633.8,2.75394011]
[1754472950090,2.5376,3633.9,3633.8,2.75394011]
[1754472950569,0.1376,3633.9,3633.8,2.75394011]
[1754472950907,0.1376,3634.2,3634.0,2.75177514]
[1754472951114,2.5376,3634.2,3633.9,2.75185242]
[1754472951263,0.001,3635.3,3633.8,0.0295194]
[1754472951468,0.1386,3634.9,3634.1,0.1376]
[1754472951667,2.4,3634.8,3634.5,2.75137407]
[1754472952197,2.4,3634.8,3634.4,2.75146341]
[1754472953155,2.4,3634.8,3634.5,2.7514007]
[1754472953391,2.4,3634.8,3634.5,2.75136775]
[1754472953906,2.4,3634.8,3634.3,0.1376]
[1754472955029,2.4,3634.8,3634.4,2.75146234]
[1754472955249,2.4,3634.8,3634.5,2.75140253]